fUST/lending_fUST_20250627
["ID","MTS","AMOUNT","RATE_DAILY","PERIOD"]
[368147527,1751038260352,-713.89,0.00020273,2]
[368147528,1751038260362,-460.0,0.00020273,2]
[368147529,1751038260371,-516.92,0.00020547,2]
[368147530,1751038260381,-713.89,0.00020547,2]
[368147531,1751038260391,-460.0,0.00020547,2]
[368147532,1751038260401,-713.89,0.00020821,2]
[368147533,1751038260410,-460.0,0.00020821,2]
[368147534,1751038260420,-713.89,0.00021095,2]
[368147535,1751038260430,-460.0,0.00021095,2]
[368147536,1751038260439,-713.89,0.00021369,2]
[368147537,1751038260448,-460.0,0.00021369,2]
[368147538,1751038260458,-1814.99397361,0.00021643,2]
[368147539,1751038260468,-1027.11,0.00021643,2]
[368147540,1751038260477,-460.0,0.00021643,2]
[368147541,1751038260487,-835.24,0.00021643,2]
[368147542,1751038260497,-460.0,0.00021643,2]
[368147543,1751038260518,-729.15,0.00021643,2]
[368147544,1751038260528,-460.0,0.00021643,2]
[368147545,1751038260539,-460.0,0.00021643,2]
[368147546,1751038260549,-1628.16,0.00021643,2]
[368147547,1751038260559,-460.0,0.00021643,2]
[368147548,1751038260569,-648.14,0.00021643,2]
[368147549,1751038260579,-551.64,0.00021643,2]
[368147550,1751038260589,-3080.1,0.00021643,2]
[368147551,1751038260599,-460.0,0.00021643,2]
[368147552,1751038260608,-460.0,0.00021643,2]
[368147553,1751038260618,-3962.82,0.00021643,2]
[368147554,1751038260629,-482.95,0.00021643,2]
[368147555,1751038260639,-460.0,0.00021643,2]
[368147556,1751038260649,-460.0,0.00021643,2]
[368147557,1751038260659,-2701.86,0.00021643,2]
[368147558,1751038260669,-960.06,0.00021643,2]
[368147559,1751038260679,-460.0,0.00021643,2]
[368147560,1751038260689,-460.0,0.00021643,2]
[368147561,1751038260699,-598.88,0.00021643,2]
[368147562,1751038260710,-460.0,0.00021643,2]
[368147563,1751038260720,-516.39,0.00021643,2]
[368147564,1751038260730,-1018.47,0.00021643,2]
[368147565,1751038260741,-460.0,0.00021643,2]
[368147566,1751038260751,-1550.47,0.00021643,2]
[368147567,1751038260761,-460.0,0.00021643,2]
[368147568,1751038260771,-460.0,0.00021643,2]
[368147569,1751038260782,-1531.61,0.00021643,2]
[368147570,1751038260792,-460.0,0.00021643,2]
[368147571,1751038260803,-1149.78,0.00021643,2]
[368147572,1751038260813,-1081.48,0.00021643,2]
[368147573,1751038260823,-584.17,0.00021643,2]
[368147574,1751038260833,-460.0,0.00021643,2]
[368147575,1751038260843,-4259.37,0.00021643,2]
[368147576,1751038260853,-560.02,0.00021643,2]
[368147577,1751038260863,-460.0,0.00021643,2]
[368147578,1751038260873,-460.0,0.00021643,2]
[368147579,1751038260883,-1041.06,0.00021643,2]
[368147580,1751038260894,-460.0,0.00021643,2]
[368147581,1751038260904,-1937.51,0.00021643,2]
[368147582,1751038260914,-550.7,0.00021643,2]
[368147583,1751038260924,-3901.22,0.00021643,2]
[368147584,1751038260934,-334.12209824,0.00021643,2]
[368147585,1751038260958,-460.0,0.0002,2]
[368147586,1751038260968,-125.87790176,0.00021643,2]
[368147587,1751038260978,-1101.83,0.00021643,2]
[368147588,1751038260988,-930.7,0.00021643,2]
[368147589,1751038260998,-693.99,0.00021643,2]
[368147590,1751038261008,-545.86,0.00021643,2]
[368147591,1751038261019,-460.0,0.00021643,2]
[368147592,1751038261028,-855.32,0.00021643,2]
[368147593,1751038261038,-713.89,0.00021643,2]
[368147594,1751038261048,-3202.96,0.000217,2]
[368147595,1751038261058,-151.274964,0.00021762,2]
[368147596,1751038261069,-151.0,0.00021762,2]
[368147597,1751038261080,-437.811769,0.00021762,2]
[368147598,1751038261091,-437.811769,0.00021762,2]
[368147599,1751038261101,-5454.23665273,0.00021917,2]
[368147600,1751038261112,-460.0,0.00021917,2]
[368147601,1751038261124,-487.3,0.00021917,2]
[368147602,1751038261134,-272.38,0.00021917,2]
[368147603,1751038261145,-627.13,0.00021917,2]
[368147604,1751038261155,-460.0,0.00021917,2]
[368147605,1751038261165,-493.07,0.00021917,2]
[368147606,1751038261175,-1636.33,0.00021917,2]
[368147607,1751038261185,-977.32,0.00021917,2]
[368147608,1751038261194,-5210.38,0.00021917,2]
[368147609,1751038261204,-524.72,0.00021917,2]
[368147610,1751038261213,-1615.3,0.00021917,2]
[368147611,1751038261223,-460.0,0.00021917,2]
[368147612,1751038261233,-518.09,0.00021917,2]
[368147613,1751038261243,-460.0,0.00021917,2]
[368147614,1751038261252,-821.81,0.00021917,2]
[368147615,1751038261263,-1051.43,0.00021917,2]
[368147616,1751038261272,-460.0,0.00021917,2]
[368147617,1751038261282,-460.0,0.00021917,2]
[368147618,1751038261292,-493.34,0.00021917,2]
[368147619,1751038261301,-5570.99,0.00021917,2]
[368147620,1751038261313,-460.0,0.00021917,2]
[368147621,1751038261323,-460.0,0.00021917,2]
[368147622,1751038261333,-1168.98,0.00021917,2]
[368147623,1751038261343,-5551.03,0.00021917,2]
[368147624,1751038261352,-1027.11,0.00021917,2]
[368147625,1751038261362,-460.0,0.00021917,2]
[368147626,1751038261372,-835.24,0.00021917,2]
[368147627,1751038261381,-460.0,0.00021917,2]
[368147628,1751038261391,-729.15,0.00021917,2]
[368147629,1751038261400,-460.0,0.00021917,2]
[368147630,1751038261412,-460.0,0.00021917,2]
[368147631,1751038261422,-1628.16,0.00021917,2]
[368147632,1751038261432,-460.0,0.00021917,2]
[368147633,1751038261443,-648.14,0.00021917,2]
[368147634,1751038261452,-551.64,0.00021917,2]
[368147635,1751038261462,-3080.1,0.00021917,2]
[368147636,1751038261471,-460.0,0.00021917,2]
[368147637,1751038261481,-460.0,0.00021917,2]
[368147638,1751038261491,-3962.82,0.00021917,2]
[368147639,1751038261501,-482.95,0.00021917,2]
[368147640,1751038261510,-460.0,0.00021917,2]
[368147641,1751038261520,-460.0,0.00021917,2]
[368147642,1751038261530,-2701.86,0.00021917,2]
[368147643,1751038261540,-960.06,0.00021917,2]
[368147644,1751038261550,-460.0,0.00021917,2]
[368147645,1751038261560,-460.0,0.00021917,2]
[368147646,1751038261570,-598.88,0.00021917,2]
[368147647,1751038261580,-460.0,0.00021917,2]
[368147648,1751038261590,-516.39,0.00021917,2]
[368147649,1751038261603,-1018.47,0.00021917,2]
[368147650,1751038261612,-460.0,0.00021917,2]
[368147651,1751038261622,-1550.47,0.00021917,2]
[368147652,1751038261632,-460.0,0.00021917,2]
[368147653,1751038261643,-462.4,0.00021917,2]
[368147654,1751038261653,-1531.61,0.00021917,2]
[368147655,1751038261663,-460.0,0.00021917,2]
[368147656,1751038261673,-1149.78,0.00021917,2]
[368147657,1751038261683,-813.73973447,0.00021917,2]
[368147658,1751038261697,-267.74026553,0.00021917,2]
[368147659,1751038261707,-584.17,0.00021917,2]
[368147660,1751038261717,-500.0,0.00021917,2]
[368147661,1751038261836,-4259.37,0.00021917,2]
[368147662,1751038261846,-560.02,0.00021917,2]
[368147663,1751038261856,-460.0,0.00021917,2]
[368147664,1751038261866,-460.0,0.00021917,2]
[368147665,1751038261876,-314.26882056,0.00021917,2]
[368147666,1751038262380,-500.0,0.0001945,2]
[368147667,1751038262390,-631.56378341,0.0001945,2]
[368147668,1751038262399,-500.0,0.0001945,2]
[368147669,1751038262409,-460.0,0.00020273,2]
[368147670,1751038262421,-460.0,0.00020547,2]
[368147671,1751038262431,-460.0,0.00020821,2]
[368147672,1751038262440,-460.0,0.00021095,2]
[368147673,1751038262449,-460.0,0.00021369,2]
[368147674,1751038262459,-460.0,0.00021643,2]
[368147675,1751038262469,-726.79117944,0.00021917,2]
[368147676,1751038262478,-460.0,0.00021917,2]
[368147677,1751038262488,-1937.51,0.00021917,2]
[368147678,1751038262497,-550.7,0.00021917,2]
[368147679,1751038262507,-3901.22,0.00021917,2]
[368147680,1751038262519,-460.0,0.00021917,2]
[368147681,1751038262531,-1101.83,0.00021917,2]
[368147682,1751038262541,-930.7,0.00021917,2]
[368147683,1751038262551,-693.99,0.00021917,2]
[368147684,1751038262561,-545.86,0.00021917,2]
[368147685,1751038262572,-460.0,0.00021917,2]
[368147686,1751038262582,-855.32,0.00021917,2]
[368147687,1751038262591,-713.89,0.00021917,2]
[368147688,1751038262600,-460.0,0.00021917,2]
[368147689,1751038262610,-209.75577767,0.00021918,2]
[368147690,1751038262621,-467.73939395,0.00021918,2]
[368147691,1751038262631,-518.98600779,0.00021973,2]
[368147692,1751038262642,-500.56304579,0.00021973,2]
[368147693,1751038262652,-500.0,0.00021973,2]
[368147694,1751038262662,-500.0,0.00021973,2]
[368147695,1751038262673,-167.364757,0.00021973,2]
[368147696,1751038262683,-500.0,0.00021973,2]
[368147697,1751038262693,-500.0,0.00021973,2]
[368147698,1751038262703,-500.0,0.00021973,2]
[368147699,1751038262713,-600.0,0.00021973,2]
[368147700,1751038262723,-500.0,0.00021973,2]
[368147701,1751038262733,-500.0,0.00021973,2]
[368147702,1751038262743,-500.0,0.00021973,2]
[368147703,1751038262752,-500.0,0.00021973,2]
[368147704,1751038262762,-359.60088653,0.00021973,2]
[368147705,1751038262771,-500.0,0.00021973,2]
[368147706,1751038262781,-160.95674916,0.00021973,2]
[368147707,1751038262791,-500.0,0.00021973,2]
[368147708,1751038262801,-500.0,0.00021973,2]
[368147709,1751038262811,-500.0,0.00021973,2]
[368147710,1751038262822,-441.67090257,0.00021973,2]
[368147711,1751038262832,-417.31908353,0.00021973,2]
[368147712,1751038262841,-500.0,0.00021973,2]
[368147713,1751038262851,-500.0,0.00021973,2]
[368147714,1751038262861,-500.0,0.00021973,2]
[368147715,1751038262870,-500.0,0.00021973,2]
[368147716,1751038262880,-3566.98612394,0.00021999,2]
[368147717,1751038262892,-24215.97352935,0.00021999,2]
[368147718,1751038262904,-125209.86875248,0.00021999,2]
[368147719,1751038262914,-151.0,0.00022,7]
[368147720,1751038262923,-428.381506,0.00022,7]
[368147721,1751038262932,-428.381506,0.00022,7]
[368147722,1751038262941,-151.0,0.00022,7]
[368147723,1751038262951,-196.311275,0.00022,7]
[368147724,1751038262960,-196.311275,0.00022,7]
[368147725,1751038262970,-213.75309343,0.00022,7]
[368147726,1751038262980,-524.32400359,0.00022,7]
[368147727,1751038262990,-6687.72296349,0.00022,2]
[368147728,1751038262999,-151.0,0.00022,7]
[368147729,1751038263009,-15498.2,0.00022,7]
[368147730,1751038263019,-195505.71,0.00022,7]
[368147731,1751038263028,-500.0,0.00022044,2]
[368147732,1751038263038,-1000.0,0.00022048,2]
[368147733,1751038263048,-1000.0,0.00022048,2]
[368147734,1751038263058,-151.0,0.00022176,7]
[368147735,1751038263069,-151.0,0.00022176,7]
[368147736,1751038263078,-460.0,0.00022191,2]
[368147737,1751038263090,-487.3,0.00022191,2]
[368147738,1751038263101,-627.13,0.00022191,2]
[368147739,1751038263110,-460.0,0.00022191,2]
[368147740,1751038263120,-493.07,0.00022191,2]
[368147741,1751038263130,-1636.33,0.00022191,2]
[368147742,1751038263140,-977.32,0.00022191,2]
[368147743,1751038263150,-5210.38,0.00022191,2]
[368147744,1751038263160,-524.72,0.00022191,2]
[368147745,1751038263171,-1615.3,0.00022191,2]
[368147746,1751038263182,-460.0,0.00022191,2]
[368147747,1751038263192,-460.0,0.00022191,2]
[368147748,1751038263203,-821.81,0.00022191,2]
[368147749,1751038263213,-1051.43,0.00022191,2]
[368147750,1751038263223,-460.0,0.00022191,2]
[368147751,1751038263233,-199.28,0.00022191,2]
[368147752,1751038263243,-493.34,0.00022191,2]
[368147753,1751038263253,-5570.99,0.00022191,2]
[368147754,1751038263263,-460.0,0.00022191,2]
[368147755,1751038263272,-460.0,0.00022191,2]
[368147756,1751038263282,-1168.98,0.00022191,2]
[368147757,1751038263291,-5551.03,0.00022191,2]
[368147758,1751038263302,-1027.11,0.00022191,2]
[368147759,1751038263312,-198.34,0.00022191,2]
[368147760,1751038263322,-835.24,0.00022191,2]
[368147761,1751038263331,-460.0,0.00022191,2]
[368147762,1751038263424,-729.15,0.00022191,2]
[368147763,1751038263435,-460.0,0.00022191,2]
[368147764,1751038263444,-1628.16,0.00022191,2]
[368147765,1751038263455,-460.0,0.00022191,2]
[368147766,1751038263466,-648.14,0.00022191,2]
[368147767,1751038263476,-551.64,0.00022191,2]
[368147768,1751038263485,-348.12,0.00022191,2]
[368147769,1751038263495,-3080.1,0.00022191,2]
[368147770,1751038263504,-3962.82,0.00022191,2]
[368147771,1751038263514,-482.95,0.00022191,2]
[368147772,1751038263524,-460.0,0.00022191,2]
[368147773,1751038263535,-460.0,0.00022191,2]
[368147774,1751038263544,-2701.86,0.00022191,2]
[368147775,1751038263554,-460.0,0.00022191,2]
[368147776,1751038263565,-460.0,0.00022191,2]
[368147777,1751038263575,-960.06,0.00022191,2]
[368147778,1751038263585,-598.88,0.00022191,2]
[368147779,1751038263595,-460.0,0.00022191,2]
[368147780,1751038263604,-516.39,0.00022191,2]
[368147781,1751038263614,-1018.47,0.00022191,2]
[368147782,1751038263624,-460.0,0.00022191,2]
[368147783,1751038263634,-1550.47,0.00022191,2]
[368147784,1751038263644,-460.0,0.00022191,2]
[368147785,1751038263654,-1531.61,0.00022191,2]
[368147786,1751038263664,-460.0,0.00022191,2]
[368147787,1751038263674,-1149.78,0.00022191,2]
[368147788,1751038263684,-1081.48,0.00022191,2]
[368147789,1751038263694,-584.17,0.00022191,2]
[368147790,1751038263705,-4259.37,0.00022191,2]
[368147791,1751038263714,-560.02,0.00022191,2]
[368147792,1751038263724,-460.0,0.00022191,2]
[368147793,1751038263734,-460.0,0.00022191,2]
[368147794,1751038263744,-1041.06,0.00022191,2]
[368147795,1751038263755,-460.0,0.00022191,2]
[368147796,1751038263765,-1937.51,0.00022191,2]
[368147797,1751038263775,-550.7,0.00022191,2]
[368147798,1751038263786,-3901.22,0.00022191,2]
[368147799,1751038263796,-460.0,0.00022191,2]
[368147800,1751038263806,-1101.83,0.00022191,2]
[368147801,1751038263816,-930.7,0.00022191,2]
[368147802,1751038263827,-693.99,0.00022191,2]
[368147803,1751038263837,-545.86,0.00022191,2]
[368147804,1751038263847,-460.0,0.00022191,2]
[368147805,1751038263857,-855.32,0.00022191,2]
[368147806,1751038263867,-713.89,0.00022191,2]
[368147807,1751038263876,-460.0,0.00022191,2]
[368147808,1751038263886,-1189.0,0.00022405,2]
[368147809,1751038263896,-2393.0,0.0002243,2]
[368147810,1751038263905,-460.0,0.00022465,2]
[368147811,1751038263916,-487.3,0.00022465,2]
[368147812,1751038263926,-627.13,0.00022465,2]
[368147813,1751038263936,-460.0,0.00022465,2]
[368147814,1751038263947,-493.07,0.00022465,2]
[368147815,1751038263956,-1636.33,0.00022465,2]
[368147816,1751038263967,-151.0,0.00022465,7]
[368147817,1751038263977,-977.32,0.00022465,2]
[368147818,1751038263988,-5210.38,0.00022465,2]
[368147819,1751038263997,-151.0,0.00022465,7]
[368147820,1751038264007,-524.72,0.00022465,2]
[368147821,1751038264017,-1615.3,0.00022465,2]
[368147822,1751038264028,-460.0,0.00022465,2]
[368147823,1751038264038,-460.0,0.00022465,2]
[368147824,1751038264048,-821.81,0.00022465,2]
[368147825,1751038264058,-1051.43,0.00022465,2]
[368147826,1751038264068,-558.93193826,0.00022465,2]
[368147827,1751038264078,-493.34,0.00022465,2]
[368147828,1751038264091,-151.0,0.00022465,7]
[368147829,1751038264101,-151.0,0.00022465,7]
[368147830,1751038264111,-5570.99,0.00022465,2]
[368147831,1751038264121,-460.0,0.00022465,2]
[368147832,1751038264131,-477.99,0.00022465,2]
[368147833,1751038264141,-1168.98,0.00022465,2]
[368147834,1751038264151,-5551.03,0.00022465,2]
[368147835,1751038264161,-1027.11,0.00022465,2]
[368147836,1751038264172,-835.24,0.00022465,2]
[368147837,1751038264182,-460.0,0.00022465,2]
[368147838,1751038264192,-729.15,0.00022465,2]
[368147839,1751038264201,-460.0,0.00022465,2]
[368147840,1751038264212,-1628.16,0.00022465,2]
[368147841,1751038264222,-460.0,0.00022465,2]
[368147842,1751038264232,-648.14,0.00022465,2]
[368147843,1751038264242,-551.64,0.00022465,2]
[368147844,1751038264252,-3080.1,0.00022465,2]
[368147845,1751038264261,-714.787094,0.00022465,7]
[368147846,1751038264271,-3962.82,0.00022465,2]
[368147847,1751038264281,-714.787094,0.00022465,7]
[368147848,1751038264292,-482.95,0.00022465,2]
[368147849,1751038264301,-460.0,0.00022465,2]
[368147850,1751038264311,-460.0,0.00022465,2]
[368147851,1751038264322,-2701.86,0.00022465,2]
[368147852,1751038264334,-460.0,0.00022465,2]
[368147853,1751038264344,-460.0,0.00022465,2]
[368147854,1751038264354,-960.06,0.00022465,2]
[368147855,1751038264374,-598.88,0.00022465,2]
[368147856,1751038264384,-460.0,0.00022465,2]
[368147857,1751038264394,-516.39,0.00022465,2]
[368147858,1751038264403,-1018.47,0.00022465,2]
[368147859,1751038264414,-460.0,0.00022465,2]
[368147860,1751038264424,-1550.47,0.00022465,2]
[368147861,1751038264435,-460.0,0.00022465,2]
[368147862,1751038264445,-1531.61,0.00022465,2]
[368147863,1751038264454,-460.0,0.00022465,2]
[368147864,1751038264464,-1149.78,0.00022465,2]
[368147865,1751038264475,-1081.48,0.00022465,2]
[368147866,1751038264485,-584.17,0.00022465,2]
[368147867,1751038264494,-4259.37,0.00022465,2]
[368147868,1751038264504,-437.811769,0.00022465,7]
[368147869,1751038264514,-437.811769,0.00022465,7]
[368147870,1751038264523,-560.02,0.00022465,2]
[368147871,1751038264533,-460.0,0.00022465,2]
[368147872,1751038264543,-460.0,0.00022465,2]
[368147873,1751038264554,-1041.06,0.00022465,2]
[368147874,1751038264564,-460.0,0.00022465,2]
[368147875,1751038264575,-1937.51,0.00022465,2]
[368147876,1751038264585,-550.7,0.00022465,2]
[368147877,1751038264596,-3901.22,0.00022465,2]
[368147878,1751038264605,-396.6,0.00022465,2]
[368147879,1751038264616,-1101.83,0.00022465,2]
[368147880,1751038264626,-930.7,0.00022465,2]
[368147881,1751038264636,-693.99,0.00022465,2]
[368147882,1751038264646,-545.86,0.00022465,2]
[368147883,1751038264656,-460.0,0.00022465,2]
[368147884,1751038264666,-855.32,0.00022465,2]
[368147885,1751038264676,-713.89,0.00022465,2]
[368147886,1751038264686,-460.0,0.00022465,2]
[368147887,1751038264696,-1189.0,0.00022465,2]
[368147888,1751038264705,-151.0,0.000225,6]
[368147889,1751038264715,-10241.62216267,0.000225,15]
[368147890,1751038264725,-1000.0,0.00022521,2]
[368147891,1751038264735,-908.95724477,0.00022521,2]
[368147892,1751038264745,-641.18617463,0.00022521,2]
[368147893,1751038264755,-915.91753784,0.00022521,2]
[368147894,1751038264765,-1000.0,0.00022521,2]
[368147895,1751038264775,-1200.0,0.00022521,2]
[368147896,1751038264786,-1000.0,0.00022521,2]
[368147897,1751038264796,-1000.0,0.00022521,2]
[368147898,1751038264806,-1000.0,0.00022521,2]
[368147899,1751038264816,-1000.0,0.00022521,2]
[368147900,1751038264826,-1000.0,0.00022521,2]
[368147901,1751038264836,-500.0,0.00022521,2]
[368147902,1751038264846,-1000.0,0.00022521,2]
[368147903,1751038264856,-1000.0,0.00022521,2]
[368147904,1751038264973,-1000.38992242,0.00022521,2]
[368147905,1751038264983,-1000.0,0.00022521,2]
[368147906,1751038264994,-1000.0,0.00022521,2]
[368147907,1751038265003,-1000.0,0.00022521,2]
[368147908,1751038265012,-1189.0,0.00022567,2]
[368147909,1751038265022,-1000.0,0.00022592,2]
[368147910,1751038265032,-1500.0,0.00022596,2]
[368147911,1751038265041,-500.0,0.00022691,2]
[368147912,1751038265050,-460.0,0.00022739,2]
[368147913,1751038265059,-487.3,0.00022739,2]
[368147914,1751038265070,-627.13,0.00022739,2]
[368147915,1751038265080,-460.0,0.00022739,2]
[368147916,1751038265092,-493.07,0.00022739,2]
[368147917,1751038265101,-1636.33,0.00022739,2]
[368147918,1751038265111,-977.32,0.00022739,2]
[368147919,1751038265121,-5210.38,0.00022739,2]
[368147920,1751038265130,-524.72,0.00022739,2]
[368147921,1751038265139,-1615.3,0.00022739,2]
[368147922,1751038265149,-336.16883824,0.00022739,2]
[368147923,1751038265161,-460.0,0.00022739,2]
[368147924,1751038265171,-821.81,0.00022739,2]
[368147925,1751038265180,-1051.43,0.00022739,2]
[368147926,1751038265190,-493.34,0.00022739,2]
[368147927,1751038265199,-5570.99,0.00022739,2]
[368147928,1751038265208,-151.18277001,0.00022739,2]
[368147929,1751038265218,-1168.98,0.00022739,2]
[368147930,1751038265228,-5551.03,0.00022739,2]
[368147931,1751038265237,-1027.11,0.00022739,2]
[368147932,1751038265247,-835.24,0.00022739,2]
[368147933,1751038265256,-460.0,0.00022739,2]
[368147934,1751038265265,-729.15,0.00022739,2]
[368147935,1751038265274,-460.0,0.00022739,2]
[368147936,1751038265284,-1628.16,0.00022739,2]
[368147937,1751038265293,-460.0,0.00022739,2]
[368147938,1751038265303,-648.14,0.00022739,2]
[368147939,1751038265312,-551.64,0.00022739,2]
[368147940,1751038265322,-3080.1,0.00022739,2]
[368147941,1751038265331,-3962.82,0.00022739,2]
[368147942,1751038265341,-482.95,0.00022739,2]
[368147943,1751038265351,-460.0,0.00022739,2]
[368147944,1751038265360,-460.0,0.00022739,2]
[368147945,1751038265370,-2701.86,0.00022739,2]
[368147946,1751038265380,-460.0,0.00022739,2]
[368147947,1751038265390,-960.06,0.00022739,2]
[368147948,1751038265399,-460.0,0.00022739,2]
[368147949,1751038265408,-598.88,0.00022739,2]
[368147950,1751038265418,-460.0,0.00022739,2]
[368147951,1751038265428,-516.39,0.00022739,2]
[368147952,1751038265437,-1018.47,0.00022739,2]
[368147953,1751038265447,-550.8,0.00022739,2]
[368147954,1751038265456,-1550.47,0.00022739,2]
[368147955,1751038265466,-460.0,0.00022739,2]
[368147956,1751038265475,-1531.61,0.00022739,2]
[368147957,1751038265485,-460.0,0.00022739,2]
[368147958,1751038265494,-1149.78,0.00022739,2]
[368147959,1751038265504,-1081.48,0.00022739,2]
[368147960,1751038265513,-584.17,0.00022739,2]
[368147961,1751038265523,-4259.37,0.00022739,2]
[368147962,1751038265532,-560.02,0.00022739,2]
[368147963,1751038265542,-460.0,0.00022739,2]
[368147964,1751038265551,-460.0,0.00022739,2]
[368147965,1751038265560,-1041.06,0.00022739,2]
[368147966,1751038265570,-460.0,0.00022739,2]
[368147967,1751038265580,-1937.51,0.00022739,2]
[368147968,1751038265589,-550.7,0.00022739,2]
[368147969,1751038265600,-3901.22,0.00022739,2]
[368147970,1751038265609,-1101.83,0.00022739,2]
[368147971,1751038265618,-930.7,0.00022739,2]
[368147972,1751038265627,-693.99,0.00022739,2]
[368147973,1751038265637,-545.86,0.00022739,2]
[368147974,1751038265646,-460.0,0.00022739,2]
[368147975,1751038265656,-855.32,0.00022739,2]
[368147976,1751038265665,-713.89,0.00022739,2]
[368147977,1751038265675,-966.0,0.00022742,2]
[368147978,1751038265685,-406.0,0.00022742,2]
[368147979,1751038265694,-900.0,0.0002275,2]
[368147980,1751038265703,-151.0,0.00022763,7]
[368147981,1751038265712,-151.0,0.00022763,7]
[368147982,1751038265722,-151.0,0.00022763,7]
[368147983,1751038265732,-151.0,0.00022763,7]
[368147984,1751038265743,-333.9512,0.00022763,7]
[368147985,1751038265753,-333.9512,0.00022763,7]
[368147986,1751038265763,-500.0,0.00022763,2]
[368147987,1751038265772,-2466.011452,0.00022763,7]
[368147988,1751038265782,-2466.011452,0.00022763,7]
[368147989,1751038265792,-1704.340604,0.00022763,7]
[368147990,1751038265801,-1704.340604,0.00022763,7]
[368147991,1751038265811,-587.0,0.00022764,2]
[368147992,1751038265821,-500.0,0.00022779,2]
[368147993,1751038265831,-500.0,0.000228,2]
[368147994,1751038265840,-900.0,0.00022804,2]
[368147995,1751038265850,-1000.0,0.0002281,2]
[368147996,1751038265860,-207.4,0.00022833,2]
[368147997,1751038265870,-5000.0,0.00022833,2]
[368147998,1751038265879,-500.0,0.00022833,2]
[368147999,1751038265890,-500.0,0.00022833,2]
[368148000,1751038265900,-359.07977781,0.00022833,2]
[368148001,1751038265909,-25000.0,0.00022833,2]
[368148002,1751038265920,-18774.53448023,0.00022833,2]
[368148003,1751038265930,-159.2394861,0.00022837,2]
[368148004,1751038265939,-159.2394861,0.00022837,2]
[368148005,1751038265948,-900.0,0.00022844,2]
[368148006,1751038265957,-1000.0,0.00022854,2]
[368148007,1751038265967,-500.0,0.00022856,2]
[368148008,1751038265977,-1000.0,0.00022883,2]
[368148009,1751038265986,-115321.47671294,0.000229,7]
[368148010,1751038265996,-151.0,0.000229,7]
[368148011,1751038266006,-151.0,0.000229,7]
[368148012,1751038266016,-151.0,0.000229,7]
[368148013,1751038266026,-151.0,0.000229,7]
[368148014,1751038266036,-151.0,0.000229,7]
[368148015,1751038266046,-151.0,0.000229,7]
[368148016,1751038266057,-151.255685,0.000229,7]
[368148017,1751038266069,-151.0,0.000229,7]
[368148018,1751038266082,-486.88458,0.000229,7]
[368148019,1751038266091,-486.88458,0.000229,7]
[368148020,1751038266101,-151.0,0.000229,7]
[368148021,1751038266110,-167.539088,0.000229,7]
[368148022,1751038266121,-151.0,0.000229,7]
[368148023,1751038266130,-3202.96,0.000229,7]
[368148024,1751038266141,-900.0,0.00022923,2]
[368148025,1751038266150,-900.0,0.0002293,2]
[368148026,1751038266159,-900.0,0.00022939,2]